fUSD/lending_fUSD_20240426
["ID","MTS","AMOUNT","RATE_DAILY","PERIOD"]
[323599791,1714103440373,-500.0,0.00010958,2]
[323599792,1714103440382,-500.0,0.00010958,2]
[323599793,1714103440392,-500.0,0.00010958,2]
[323599794,1714103440401,-500.0,0.00010958,2]
[323599795,1714103440410,-500.0,0.00010958,2]
[323599796,1714103440420,-500.0,0.00010958,2]
[323599797,1714103440428,-500.0,0.00010958,2]
[323599798,1714103440437,-500.0,0.00010958,2]
[323599799,1714103440446,-500.0,0.00010958,2]
[323599800,1714103440455,-500.0,0.00010958,2]
[323599801,1714103440464,-500.0,0.00010958,2]
[323599802,1714103440473,-500.0,0.00010958,2]
[323599803,1714103440482,-500.0,0.00010958,2]
[323599804,1714103440492,-500.0,0.00010958,2]
[323599805,1714103440501,-500.0,0.00010958,2]
[323599806,1714103440510,-500.0,0.00010958,2]
[323599807,1714103440520,-500.0,0.00010958,2]
[323599808,1714103440529,-500.0,0.00010958,2]
[323599809,1714103440540,-500.0,0.00010958,2]
[323599810,1714103440551,-500.0,0.00010958,2]
[323599811,1714103440561,-500.0,0.00010958,2]
[323599812,1714103440570,-542.03205709,0.00010958,2]
[323599813,1714103440579,-500.0,0.00010958,2]
[323599814,1714103440590,-500.0,0.00010958,2]
[323599815,1714103440599,-500.0,0.00010958,2]
[323599816,1714103440608,-500.0,0.00010958,2]
[323599817,1714103440619,-1499.98,0.00010958,2]
[323599818,1714103440630,-622.64,0.00010958,2]
[323599819,1714103440639,-820.84,0.00010958,2]
[323599820,1714103440649,-500.0,0.00010958,2]
[323599821,1714103440657,-500.0,0.00010958,2]
[323599822,1714103440667,-500.0,0.00010958,2]
[323599823,1714103440677,-500.0,0.00010958,2]
[323599824,1714103440686,-500.0,0.00010958,2]
[323599825,1714103440696,-500.0,0.00010958,2]
[323599826,1714103440705,-500.0,0.00010958,2]
[323599827,1714103440714,-500.0,0.00010958,2]
[323599828,1714103440723,-887.11,0.00010958,2]
[323599829,1714103440734,-2304.09,0.00010958,2]
[323599830,1714103440745,-500.0,0.00010958,2]
[323599831,1714103440755,-573.6780748,0.00010958,2]
[323599832,1714103440766,-500.0,0.00010958,2]
[323599833,1714103440775,-500.0,0.00010958,2]
[323599834,1714103440785,-631.02,0.00010958,2]
[323599835,1714103440795,-500.0,0.00010958,2]
[323599836,1714103440804,-500.0,0.00010958,2]
[323599837,1714103440814,-500.0,0.00010958,2]
[323599838,1714103440823,-500.0,0.00010958,2]
[323599839,1714103440833,-515.85,0.00010958,2]
[323599840,1714103440842,-500.0,0.00010958,2]
[323599841,1714103440851,-4492.01,0.00010958,2]
[323599842,1714103440861,-172.72787083,0.00010958,2]
[323599843,1714103440870,-620.89001364,0.00010958,2]
[323599844,1714103440881,-500.0,0.00010958,2]
[323599845,1714103440891,-500.0,0.00010958,2]
[323599846,1714103440901,-500.0,0.00010958,2]
[323599847,1714103440910,-500.0,0.00010958,2]
[323599848,1714103440922,-500.0,0.00010958,2]
[323599849,1714103440931,-500.0,0.00010958,2]
[323599850,1714103440940,-516.64,0.00010958,2]
[323599851,1714103440953,-500.0,0.00010958,2]
[323599852,1714103440962,-247.13772084,0.00010958,2]
[323599853,1714103440975,-500.0,0.00010958,2]
[323599854,1714103440985,-1086.73,0.00010958,2]
[323599855,1714103440996,-3246.25,0.00010958,2]
[323599856,1714103441005,-500.0,0.00010958,2]
[323599857,1714103441014,-500.0,0.00010958,2]
[323599858,1714103441024,-500.0,0.00010958,2]
[323599859,1714103441034,-169.25849318,0.00010958,2]
[323599860,1714103441411,-330.74150682,0.00010958,2]
[323599861,1714103441422,-500.0,0.00010958,2]
[323599862,1714103441431,-500.0,0.00010958,2]
[323599863,1714103441441,-1794.87,0.00010958,2]
[323599864,1714103441451,-500.0,0.00010958,2]
[323599865,1714103441461,-500.0,0.00010958,2]
[323599866,1714103441470,-500.0,0.00010958,2]
[323599867,1714103441479,-500.0,0.00010958,2]
[323599868,1714103441488,-500.0,0.00010958,2]
[323599869,1714103441499,-3520.56,0.00010958,2]
[323599870,1714103441508,-500.0,0.00010958,2]
[323599871,1714103441517,-500.0,0.00010958,2]
[323599872,1714103441527,-500.0,0.00010958,2]
[323599873,1714103441539,-500.0,0.00010958,2]
[323599874,1714103441550,-500.0,0.00010958,2]
[323599875,1714103441560,-500.0,0.00010958,2]
[323599876,1714103441569,-500.0,0.00010958,2]
[323599877,1714103441579,-643.86,0.00010958,2]
[323599878,1714103441589,-500.0,0.00010958,2]
[323599879,1714103441598,-500.0,0.00010958,2]
[323599880,1714103441608,-623.1307954,0.00010958,2]
[323599881,1714103441618,-500.0,0.00010958,2]
[323599882,1714103441629,-500.0,0.00010958,2]
[323599883,1714103441638,-500.0,0.00010958,2]
[323599884,1714103441648,-500.0,0.00010958,2]
[323599885,1714103441657,-509.0,0.00010958,2]
[323599886,1714103441667,-817.52,0.00010958,2]
[323599887,1714103441676,-843.31,0.00010958,2]
[323599888,1714103441685,-500.0,0.00010958,2]
[323599889,1714103441695,-232.17548197,0.00010958,2]
[323599890,1714103441705,-500.0,0.00010958,2]
[323599891,1714103441715,-310.37269277,0.00010958,2]
[323599892,1714103441724,-656.38,0.00010958,2]
[323599893,1714103441733,-500.0,0.00010958,2]
[323599894,1714103441744,-204.56185484,0.00010958,2]
[323599895,1714103441753,-500.0,0.00010958,2]
[323599896,1714103441763,-500.0,0.00010958,2]
[323599897,1714103441773,-611.99,0.00010958,2]
[323599898,1714103441782,-500.0,0.00010958,2]
[323599899,1714103441792,-722.66,0.00010958,2]
[323599900,1714103441801,-500.0,0.00010958,2]
[323599901,1714103441811,-500.0,0.00010958,2]
[323599902,1714103441820,-500.0,0.00010958,2]
[323599903,1714103441829,-500.0,0.00010958,2]
[323599904,1714103441839,-500.0,0.00010958,2]
[323599905,1714103441848,-946.51,0.00010958,2]
[323599906,1714103441857,-574.72763451,0.00010958,2]
[323599907,1714103441867,-500.0,0.00010958,2]
[323599908,1714103441877,-533.74879577,0.00010958,2]
[323599909,1714103441888,-831.05,0.00010958,2]
[323599910,1714103441898,-298.12737284,0.00010958,2]
[323599911,1714103441908,-500.0,0.00010958,2]
[323599912,1714103441917,-500.0,0.00010958,2]
[323599913,1714103441927,-865.08,0.00010958,2]
[323599914,1714103441937,-500.0,0.00010958,2]
[323599915,1714103441947,-500.0,0.00010958,2]
[323599916,1714103441958,-532.5,0.00010958,2]
[323599917,1714103441968,-500.0,0.00010958,2]
[323599918,1714103441978,-500.0,0.00010958,2]
[323599919,1714103441988,-500.0,0.00010958,2]
[323599920,1714103442000,-1198.27,0.00010958,2]
[323599921,1714103442010,-590.87,0.00010958,2]
[323599922,1714103442019,-500.0,0.00010958,2]
[323599923,1714103442028,-500.0,0.00010958,2]
[323599924,1714103442037,-600.37,0.00010958,2]
[323599925,1714103442048,-500.0,0.00010958,2]
[323599926,1714103442058,-533.83492304,0.00010958,2]
[323599927,1714103442067,-98.12154857,0.00010958,2]
[323599928,1714103442080,-760.05845143,0.00010958,2]
[323599929,1714103442090,-578.51,0.00010958,2]
[323599930,1714103442100,-500.0,0.00010958,2]
[323599931,1714103442109,-263.97035887,0.00010958,2]
[323599932,1714103442119,-500.0,0.00010958,2]
[323599933,1714103442129,-500.0,0.00010958,2]
[323599934,1714103442139,-500.0,0.00010958,2]
[323599935,1714103442148,-2367.66,0.00010958,2]
[323599936,1714103442158,-1909.18,0.00010958,2]
[323599937,1714103442168,-500.0,0.00010958,2]
[323599938,1714103442177,-500.0,0.00010958,2]
[323599939,1714103442188,-570.62118973,0.00010958,2]
[323599940,1714103442240,-131.72881027,0.00010958,2]
[323599941,1714103442252,-500.0,0.00010958,2]
[323599942,1714103442261,-1749.61,0.00010958,2]
[323599943,1714103442271,-2356.63,0.00010958,2]
[323599944,1714103442280,-1775.59,0.00010958,2]
[323599945,1714103442289,-296.90931855,0.00010958,2]
[323599946,1714103442298,-500.0,0.00010958,2]
[323599947,1714103442308,-2180.5,0.00010958,2]
[323599948,1714103442317,-746.91,0.00010958,2]
[323599949,1714103442326,-574.13,0.00010958,2]
[323599950,1714103442336,-500.0,0.00010958,2]
[323599951,1714103442346,-500.0,0.00010958,2]
[323599952,1714103442355,-500.0,0.00010958,2]
[323599953,1714103442364,-884.15,0.00010958,2]
[323599954,1714103442374,-1778.61,0.00010958,2]
[323599955,1714103442383,-500.0,0.00010958,2]
[323599956,1714103442392,-500.0,0.00010958,2]
[323599957,1714103442402,-733.15,0.00010958,2]
[323599958,1714103442411,-500.0,0.00010958,2]
[323599959,1714103442421,-540.51,0.00010958,2]
[323599960,1714103442430,-500.0,0.00010958,2]
[323599961,1714103442440,-535.47,0.00010958,2]
[323599962,1714103442449,-500.0,0.00010958,2]
[323599963,1714103442458,-500.0,0.00010958,2]
[323599964,1714103442468,-926.6,0.00010958,2]
[323599965,1714103442478,-500.0,0.00010958,2]
[323599966,1714103442487,-500.0,0.00010958,2]
[323599967,1714103442497,-500.0,0.00010958,2]
[323599968,1714103442507,-7074.26,0.00010958,2]
[323599969,1714103442516,-199.61320687,0.00010958,2]
[323599970,1714103442525,-882.54,0.00010958,2]
[323599971,1714103442535,-500.0,0.00010958,2]
[323599972,1714103442546,-500.0,0.00010958,2]
[323599973,1714103442556,-500.0,0.00010958,2]
[323599974,1714103442565,-500.0,0.00010958,2]
[323599975,1714103442575,-500.0,0.00010958,2]
[323599976,1714103442585,-500.0,0.00010958,2]
[323599977,1714103442595,-500.0,0.00010958,2]
[323599978,1714103442604,-500.0,0.00010958,2]
[323599979,1714103442614,-500.0,0.00010958,2]
[323599980,1714103442625,-500.0,0.00010958,2]
[323599981,1714103442634,-1770.68,0.00010958,2]
[323599982,1714103442644,-500.0,0.00010958,2]
[323599983,1714103442653,-500.0,0.00010958,2]
[323599984,1714103442663,-500.0,0.00010958,2]
[323599985,1714103442672,-2122.78,0.00010958,2]
[323599986,1714103442682,-829.66,0.00010958,2]
[323599987,1714103442691,-554.29,0.00010958,2]
[323599988,1714103442701,-500.0,0.00010958,2]
[323599989,1714103442710,-500.0,0.00010958,2]
[323599990,1714103442720,-738.29,0.00010958,2]
[323599991,1714103442729,-500.0,0.00010958,2]
[323599992,1714103442738,-500.0,0.00010958,2]
[323599993,1714103442748,-908.82,0.00010958,2]
[323599994,1714103442757,-193.51245915,0.00010958,2]
[323599995,1714103442767,-500.0,0.00010958,2]
[323599996,1714103442776,-500.0,0.00010958,2]
[323599997,1714103442785,-500.0,0.00010958,2]
[323599998,1714103442794,-309.18682117,0.00010958,2]
[323599999,1714103442803,-8856.42,0.00010958,2]
[323600000,1714103442812,-500.0,0.00010958,2]
[323600001,1714103442822,-500.0,0.00010958,2]
[323600002,1714103442831,-500.0,0.00010958,2]
[323600003,1714103442840,-500.0,0.00010958,2]
[323600004,1714103442849,-604.35,0.00010958,2]
[323600005,1714103442858,-500.0,0.00010958,2]
[323600006,1714103442867,-500.0,0.00010958,2]
[323600007,1714103442877,-500.0,0.00010958,2]
[323600008,1714103442886,-500.0,0.00010958,2]
[323600009,1714103442895,-500.0,0.00010958,2]
[323600010,1714103442904,-500.0,0.00010958,2]
[323600011,1714103442913,-520.91,0.00010958,2]
[323600012,1714103442922,-537.58,0.00010958,2]
[323600013,1714103442931,-488.24043394,0.00010958,2]
[323600014,1714103442940,-500.0,0.00010958,2]
[323600015,1714103442949,-500.0,0.00010958,2]
[323600016,1714103442958,-500.0,0.00010958,2]
[323600017,1714103442967,-589.91,0.00010958,2]
[323600018,1714103442976,-500.0,0.00010958,2]
[323600019,1714103442985,-500.0,0.00010958,2]
[323600020,1714103442994,-499.99,0.00010959,2]
[323600021,1714103443003,-230.5,0.00010959,3]
[323600022,1714103443012,-150.0,0.00010959,2]
[323600023,1714103443022,-10000.0,0.00010959,2]
[323600024,1714103443030,-1262.52,0.0001096,2]
[323600025,1714103443039,-155.0,0.00011,2]
[323600026,1714103443048,-183.4,0.00011046,2]
[323600027,1714103443057,-204.36851064,0.00011132,2]
[323600028,1714103443066,-541.21,0.00011232,2]
[323600029,1714103443075,-500.0,0.00011232,2]
[323600030,1714103443085,-540.97,0.00011232,2]
[323600031,1714103443094,-500.0,0.00011232,2]
[323600032,1714103443103,-500.0,0.00011232,2]
[323600033,1714103443112,-667.52,0.00011232,2]
[323600034,1714103443120,-500.0,0.00011232,2]
[323600035,1714103443130,-500.0,0.00011232,2]
[323600036,1714103443139,-500.0,0.00011232,2]
[323600037,1714103443147,-500.0,0.00011232,2]
[323600038,1714103443156,-500.0,0.00011232,2]
[323600039,1714103443165,-500.0,0.00011232,2]
[323600040,1714103443174,-506.44,0.00011232,2]
[323600041,1714103443183,-500.0,0.00011232,2]
[323600042,1714103443192,-500.0,0.00011232,2]
[323600043,1714103443201,-290.70549272,0.00011232,2]
[323600044,1714103443210,-500.0,0.00011232,2]
[323600045,1714103443219,-500.0,0.00011232,2]
[323600046,1714103443228,-500.0,0.00011232,2]
[323600049,1714103443456,-500.0,0.00011232,2]
[323600050,1714103443466,-500.0,0.00011232,2]
[323600051,1714103443475,-500.0,0.00011232,2]
[323600052,1714103443486,-500.0,0.00011232,2]
[323600053,1714103443499,-500.0,0.00011232,2]
[323600054,1714103443508,-500.0,0.00011232,2]
[323600055,1714103443517,-500.0,0.00011232,2]
[323600056,1714103443526,-500.0,0.00011232,2]
[323600057,1714103443535,-500.0,0.00011232,2]
[323600058,1714103443546,-500.0,0.00011232,2]
[323600059,1714103443555,-500.0,0.00011232,2]
[323600060,1714103443564,-500.0,0.00011232,2]
[323600061,1714103443573,-500.0,0.00011232,2]
[323600062,1714103443582,-500.0,0.00011232,2]
[323600063,1714103443592,-500.0,0.00011232,2]
[323600064,1714103443601,-500.0,0.00011232,2]
[323600065,1714103443611,-500.0,0.00011232,2]
[323600066,1714103443620,-500.0,0.00011232,2]
[323600067,1714103443631,-500.0,0.00011232,2]
[323600068,1714103443640,-500.0,0.00011232,2]
[323600069,1714103443649,-500.0,0.00011232,2]
[323600070,1714103443658,-500.0,0.00011232,2]
[323600071,1714103443668,-500.0,0.00011232,2]
[323600072,1714103443677,-500.0,0.00011232,2]
[323600073,1714103443687,-527.92417615,0.00011232,2]
[323600074,1714103443696,-500.0,0.00011232,2]
[323600075,1714103443706,-500.0,0.00011232,2]
[323600076,1714103443715,-282.52894143,0.00011232,2]
[323600077,1714103443724,-500.0,0.00011232,2]
[323600078,1714103443733,-500.0,0.00011232,2]
[323600079,1714103443742,-312.31814462,0.00011232,2]
[323600080,1714103443753,-500.0,0.00011232,2]
[323600081,1714103443762,-500.0,0.00011232,2]
[323600082,1714103443770,-500.0,0.00011232,2]
[323600083,1714103443779,-527.69,0.00011232,2]
[323600084,1714103443788,-500.0,0.00011232,2]
[323600085,1714103443797,-500.0,0.00011232,2]
[323600086,1714103443807,-283.52409023,0.00011232,2]
[323600087,1714103443816,-677.76,0.00011232,2]
[323600088,1714103443825,-500.0,0.00011232,2]
[323600089,1714103443834,-500.0,0.00011232,2]
[323600090,1714103443843,-500.0,0.00011232,2]
[323600091,1714103443853,-500.0,0.00011232,2]
[323600092,1714103443863,-500.0,0.00011232,2]
[323600093,1714103443872,-500.0,0.00011232,2]
[323600094,1714103443881,-500.0,0.00011232,2]
[323600095,1714103443890,-500.0,0.00011232,2]
[323600096,1714103443900,-500.0,0.00011232,2]
[323600097,1714103443909,-500.0,0.00011232,2]
[323600098,1714103443919,-500.0,0.00011232,2]
[323600099,1714103443931,-662.46,0.00011232,2]
[323600100,1714103443940,-219.08,0.00011232,2]
[323600102,1714103443949,-500.0,0.00011232,2]
[323600103,1714103443959,-500.0,0.00011232,2]
[323600104,1714103443968,-500.0,0.00011232,2]
[323600105,1714103443977,-500.0,0.00011232,2]
[323600106,1714103443986,-506.64283368,0.00011232,2]
[323600107,1714103443996,-535.58,0.00011232,2]
[323600108,1714103444005,-500.0,0.00011232,2]
[323600109,1714103444015,-500.0,0.00011232,2]
[323600110,1714103444024,-500.0,0.00011232,2]
[323600111,1714103444033,-500.0,0.00011232,2]
[323600112,1714103444042,-500.0,0.00011232,2]
[323600113,1714103444051,-500.0,0.00011232,2]
[323600114,1714103444060,-536.33,0.00011232,2]
[323600115,1714103444069,-500.0,0.00011232,2]
[323600116,1714103444078,-643.15027358,0.00011232,2]
[323600117,1714103444087,-300.79039928,0.00011232,2]
[323600118,1714103444096,-500.0,0.00011232,2]
[323600119,1714103444106,-500.0,0.00011232,2]
[323600120,1714103444115,-500.0,0.00011232,2]
[323600121,1714103444125,-241.59517012,0.00011232,2]
[323600122,1714103444134,-500.0,0.00011232,2]
[323600123,1714103444143,-500.0,0.00011232,2]
[323600124,1714103444152,-500.0,0.00011232,2]
[323600125,1714103444161,-500.0,0.00011232,2]
[323600126,1714103444170,-500.0,0.00011232,2]
[323600127,1714103444179,-625.89,0.00011232,2]
[323600128,1714103444188,-500.0,0.00011232,2]
[323600129,1714103444197,-500.0,0.00011232,2]
[323600130,1714103444206,-500.0,0.00011232,2]
[323600131,1714103444215,-500.0,0.00011232,2]
[323600132,1714103444225,-526.95,0.00011232,2]
[323600133,1714103444234,-500.0,0.00011232,2]
[323600134,1714103444244,-152.06817788,0.00011232,2]
[323600135,1714103444253,-619.73,0.00011232,2]
[323600136,1714103444262,-500.0,0.00011232,2]
[323600137,1714103444271,-500.0,0.00011232,2]
[323600138,1714103444280,-500.0,0.00011232,2]
[323600139,1714103444289,-1049.07,0.00011232,2]
[323600140,1714103444298,-500.0,0.00011232,2]
[323600141,1714103444307,-500.0,0.00011232,2]
[323600142,1714103444317,-500.0,0.00011232,2]
[323600143,1714103444325,-500.0,0.00011232,2]
[323600144,1714103444334,-500.0,0.00011232,2]
[323600145,1714103444343,-500.0,0.00011232,2]
[323600146,1714103444352,-500.0,0.00011232,2]
[323600147,1714103444361,-683.01,0.00011232,2]
[323600148,1714103444370,-500.0,0.00011232,2]
[323600149,1714103444379,-500.0,0.00011232,2]
[323600150,1714103444388,-500.0,0.00011232,2]
[323600151,1714103444397,-251.02614077,0.00011232,2]
[323600152,1714103444407,-500.0,0.00011232,2]
[323600153,1714103444417,-500.0,0.00011232,2]
[323600154,1714103444426,-500.0,0.00011232,2]
[323600155,1714103444435,-500.0,0.00011232,2]
[323600156,1714103444444,-500.0,0.00011232,2]
[323600157,1714103444453,-500.0,0.00011232,2]
[323600158,1714103444462,-500.0,0.00011232,2]
[323600159,1714103444471,-500.0,0.00011232,2]
[323600160,1714103444480,-500.0,0.00011232,2]
[323600161,1714103444490,-500.0,0.00011232,2]
[323600162,1714103444500,-500.0,0.00011232,2]
[323600163,1714103444509,-500.0,0.00011232,2]
[323600164,1714103444519,-500.0,0.00011232,2]
[323600165,1714103444528,-500.0,0.00011232,2]
[323600166,1714103444537,-500.0,0.00011232,2]
[323600167,1714103444548,-500.0,0.00011232,2]
[323600168,1714103444557,-508.05651755,0.00011232,2]
[323600169,1714103444566,-369.8505796,0.00011232,2]
[323600170,1714103444575,-500.0,0.00011232,2]
[323600171,1714103444585,-500.0,0.00011232,2]
[323600172,1714103444594,-500.0,0.00011232,2]
[323600173,1714103444603,-500.0,0.00011232,2]
[323600174,1714103444612,-500.0,0.00011232,2]
[323600175,1714103444622,-1499.98,0.00011232,2]
[323600176,1714103444631,-622.64,0.00011232,2]
[323600177,1714103444640,-820.84,0.00011232,2]
[323600178,1714103444649,-500.0,0.00011232,2]
[323600179,1714103444658,-500.0,0.00011232,2]
[323600180,1714103444667,-500.0,0.00011232,2]
[323600181,1714103444676,-500.0,0.00011232,2]
[323600182,1714103444685,-500.0,0.00011232,2]
[323600183,1714103444695,-500.0,0.00011232,2]
[323600184,1714103444704,-887.11,0.00011232,2]
[323600185,1714103444713,-2304.09,0.00011232,2]
[323600186,1714103444722,-500.0,0.00011232,2]
[323600187,1714103444732,-631.02,0.00011232,2]
[323600188,1714103444741,-500.0,0.00011232,2]
[323600189,1714103444751,-500.0,0.00011232,2]
[323600190,1714103444760,-500.0,0.00011232,2]
[323600191,1714103444769,-500.0,0.00011232,2]
[323600192,1714103444778,-515.85,0.00011232,2]
[323600193,1714103444787,-500.0,0.00011232,2]
[323600194,1714103444798,-4492.01,0.00011232,2]
[323600195,1714103444808,-500.0,0.00011232,2]
[323600196,1714103444817,-500.0,0.00011232,2]
[323600197,1714103444826,-500.0,0.00011232,2]
[323600198,1714103444835,-500.0,0.00011232,2]
[323600199,1714103444845,-500.0,0.00011232,2]
[323600200,1714103444855,-500.0,0.00011232,2]
[323600201,1714103444866,-516.64,0.00011232,2]
[323600202,1714103444876,-500.0,0.00011232,2]
[323600203,1714103444886,-500.0,0.00011232,2]
[323600204,1714103444895,-1086.73,0.00011232,2]
[323600205,1714103444905,-3246.25,0.00011232,2]
[323600206,1714103444915,-500.0,0.00011232,2]
[323600207,1714103444923,-500.0,0.00011232,2]
[323600208,1714103444933,-506.51424637,0.00011232,2]
[323600209,1714103444942,-500.0,0.00011232,2]
[323600210,1714103444953,-500.0,0.00011232,2]
[323600211,1714103444963,-1794.87,0.00011232,2]
[323600212,1714103444973,-500.0,0.00011232,2]
[323600213,1714103444983,-500.0,0.00011232,2]
[323600214,1714103444994,-500.0,0.00011232,2]
[323600215,1714103445003,-500.0,0.00011232,2]
[323600216,1714103445013,-3520.56,0.00011232,2]
[323600217,1714103445024,-500.0,0.00011232,2]
[323600218,1714103445035,-500.0,0.00011232,2]
[323600219,1714103445045,-500.0,0.00011232,2]
[323600220,1714103445054,-500.0,0.00011232,2]
[323600221,1714103445065,-469.69959742,0.00011232,2]
[323600222,1714103445074,-500.0,0.00011232,2]
[323600223,1714103445083,-643.86,0.00011232,2]
[323600224,1714103445093,-500.0,0.00011232,2]
[323600225,1714103445104,-500.0,0.00011232,2]
[323600226,1714103445114,-500.0,0.00011232,2]
[323600227,1714103445123,-500.0,0.00011232,2]
[323600228,1714103445132,-500.0,0.00011232,2]
[323600229,1714103445142,-817.52,0.00011232,2]
[323600230,1714103445151,-843.31,0.00011232,2]
[323600231,1714103445160,-656.38,0.00011232,2]
[323600232,1714103445170,-500.0,0.00011232,2]
[323600233,1714103445179,-500.0,0.00011232,2]
[323600234,1714103445188,-527.86519818,0.00011232,2]
[323600235,1714103445197,-611.99,0.00011232,2]
[323600236,1714103445206,-500.0,0.00011232,2]
[323600237,1714103445215,-722.66,0.00011232,2]
[323600238,1714103445225,-500.0,0.00011232,2]
[323600239,1714103445234,-500.0,0.00011232,2]
[323600240,1714103445245,-500.0,0.00011232,2]
[323600241,1714103445256,-946.51,0.00011232,2]
[323600242,1714103445265,-520.213865,0.00011232,2]
[323600243,1714103445274,-831.05,0.00011232,2]
[323600244,1714103445284,-500.0,0.00011232,2]
[323600245,1714103445293,-500.0,0.00011232,2]
[323600246,1714103445302,-865.08,0.00011232,2]
[323600247,1714103445311,-500.0,0.00011232,2]
[323600248,1714103445321,-532.5,0.00011232,2]
[323600249,1714103445330,-500.0,0.00011232,2]
[323600250,1714103445339,-500.0,0.00011232,2]
[323600251,1714103445348,-500.0,0.00011232,2]
[323600252,1714103445358,-1198.27,0.00011232,2]
[323600253,1714103445368,-590.87,0.00011232,2]
[323600254,1714103445377,-500.0,0.00011232,2]
[323600255,1714103445387,-500.0,0.00011232,2]
[323600256,1714103445396,-600.37,0.00011232,2]
[323600257,1714103445405,-500.0,0.00011232,2]
[323600258,1714103445414,-858.18,0.00011232,2]
[323600259,1714103445423,-578.51,0.00011232,2]
[323600260,1714103445432,-500.0,0.00011232,2]
[323600261,1714103445442,-500.0,0.00011232,2]
[323600262,1714103445451,-500.0,0.00011232,2]
[323600263,1714103445460,-500.0,0.00011232,2]
[323600264,1714103445469,-2367.66,0.00011232,2]
[323600265,1714103445478,-1909.18,0.00011232,2]
[323600266,1714103445488,-702.35,0.00011232,2]
[323600267,1714103445503,-500.0,0.00011232,2]
[323600268,1714103445512,-1749.61,0.00011232,2]
[323600269,1714103445521,-2356.63,0.00011232,2]
[323600270,1714103445530,-1775.59,0.00011232,2]
[323600271,1714103445541,-500.0,0.00011232,2]
[323600272,1714103445552,-2180.5,0.00011232,2]
[323600273,1714103445561,-746.91,0.00011232,2]
[323600274,1714103445571,-574.13,0.00011232,2]
[323600275,1714103445580,-500.0,0.00011232,2]
[323600276,1714103445590,-500.0,0.00011232,2]
[323600277,1714103445600,-884.15,0.00011232,2]
[323600278,1714103445608,-1778.61,0.00011232,2]
[323600279,1714103445621,-500.0,0.00011232,2]
[323600280,1714103445630,-500.0,0.00011232,2]
[323600281,1714103445639,-733.15,0.00011232,2]
[323600282,1714103445649,-500.0,0.00011232,2]
[323600283,1714103445659,-540.51,0.00011232,2]
[323600284,1714103445668,-500.0,0.00011232,2]
[323600285,1714103445679,-535.47,0.00011232,2]
[323600286,1714103445689,-500.0,0.00011232,2]
[323600287,1714103445699,-926.6,0.00011232,2]
[323600288,1714103445709,-500.0,0.00011232,2]
[323600289,1714103445718,-500.0,0.00011232,2]
[323600290,1714103445728,-500.0,0.00011232,2]
[323600291,1714103445738,-7074.26,0.00011232,2]
[323600292,1714103445749,-882.54,0.00011232,2]
[323600293,1714103445758,-500.0,0.00011232,2]